bitfinex-derivatives/quotes_SOLF0:USTF0_20250212
["timestamp","ask_amount","ask_price","bid_price","bid_amount"]
[1739374740197,0.03593679,193.53,193.49,0.03797478]
[1739374740696,37.50591833,193.66,193.51,37.50591833]
[1739374740993,5.1653,193.61,193.53,5.1674]
[1739374741194,37.50591833,193.63,193.49,1.9677]
[1739374741506,5.1664,193.57,193.49,1.9677]
[1739374742093,37.50591833,193.66,193.52,5.1674]
[1739374742393,5.6168,193.68,193.51,37.50591833]
[1739374742594,5.6168,193.68,193.57,0.03323559]
[1739374742794,3.7954,193.68,193.57,0.03323559]
[1739374743096,1.8214,193.67,193.57,0.03323559]
[1739374743491,1.8214,193.67,193.57,37.53915392]
[1739374744298,1.8214,193.67,193.57,0.03323559]
[1739374744995,37.50591833,193.63,193.57,0.03323559]
[1739374745199,37.50591833,193.6,193.43,3.7529]
[1739374745393,1.8558,193.59,193.43,3.7529]
[1739374745794,1.8558,193.59,193.44,1.8538]
[1739374746193,5.1673,193.54,193.44,7.0234]
[1739374746388,1.8558,193.59,193.44,7.0234]
[1739374746696,5.1679,193.51,193.5,0.03512225]
[1739374746896,37.50591833,193.52,193.41,21.28683833]
[1739374747099,0.03549306,193.53,193.41,21.28683833]
[1739374747295,5.1674,193.53,193.52,21.28683833]
[1739374747492,37.50591833,193.55,193.52,21.28683833]
[1739374747493,1.8558,193.59,193.52,12.31233833]
[1739374748000,0.03952391,193.57,193.54,0.03432598]
[1739374749490,37.50591833,193.69,193.54,0.03432598]
[1739374749491,37.50591833,193.69,193.54,37.54024431]
[1739374749889,37.50591833,193.72,193.54,37.50591833]
[1739374750095,5.164,193.66,193.57,42.67211833]
[1739374750294,5.164,193.66,193.57,37.50591833]
[1739374750598,37.50591833,193.75,193.57,37.50591833]
[1739374750795,0.03662382,193.63,193.6,0.03770463]
[1739374750997,0.94923209,193.74,193.58,3.784]
[1739374751197,0.03687079,193.63,193.6,0.03664593]
[1739374751507,37.50591833,193.72,193.58,3.784]
[1739374751697,0.03621929,193.63,193.6,0.03669434]
[1739374751897,37.50591833,193.72,193.6,0.03669434]
[1739374752098,0.03373948,193.63,193.51,37.50591833]
[1739374752299,37.50591833,193.66,193.6,0.03455384]
[1739374752601,1.8051,193.65,193.54,0.03786395]
[1739374752899,1.83815198,193.65,193.58,0.03493761]
[1739374753098,5.1658,193.59,193.58,0.03493761]
[1739374753503,0.03608705,193.63,193.58,0.03493761]
[1739374753705,5.1656,193.6,193.58,0.03493761]
[1739374755106,5.1658,193.59,193.58,0.03493761]
[1739374756609,0.03608705,193.63,193.5,5.168]
[1739374756610,5.1666,193.56,193.5,5.168]
[1739374756812,37.54200538,193.63,193.46,1.9129]
[1739374757005,37.50591833,193.6,193.46,1.9129]
[1739374757209,5.1677,193.52,193.46,5.169]
[1739374757706,5.20112229,193.52,193.49,0.23892118]
[1739374758309,5.1681,193.51,193.49,0.23892118]
[1739374758706,0.03342229,193.52,193.49,0.23892118]
[1739374762116,0.03342229,193.52,193.51,42.67381833]
[1739374763414,1.8063,193.64,193.51,37.50591833]
[1739374763614,3.6433,193.65,193.54,37.50591833]
[1739374764117,1.8382,193.65,193.58,5.1658]
[1739374764318,1.8382,193.65,193.5,39.44281833]
[1739374764516,5.20432617,193.63,193.6,0.03669357]
[1739374764812,0.03942617,193.63,193.5,39.44281833]
[1739374765012,1.8382,193.65,193.6,0.03803125]
[1739374765217,0.03629698,193.58,193.55,0.0374704]
[1739374765417,1.8382,193.65,193.54,37.50591833]
[1739374765613,0.03398211,193.58,193.55,0.0326916]
[1739374765817,1.8382,193.65,193.55,0.0326916]
[1739374766020,0.03333818,193.58,193.57,37.50591833]
[1739374766220,1.8915,193.71,193.57,37.50591833]
[1739374767017,39.39741833,193.71,193.53,37.50591833]
[1739374767418,5.1646,193.64,193.6,0.03395668]
[1739374767621,39.39741833,193.71,193.6,0.03395668]
[1739374768222,5.165,193.62,193.6,0.03395668]
[1739374768417,37.50591833,193.68,193.6,0.03395668]
[1739374768618,37.50591833,193.68,193.5,39.44281833]
[1739374768913,37.50591833,193.65,193.5,39.44281833]
[1739374769112,2.0046,193.64,193.5,1.9369]
[1739374769322,37.50591833,193.6,193.49,56.46798007]
[1739374769517,1.8462,193.59,193.49,56.46798007]
[1739374769722,0.03904726,193.56,193.53,0.03279789]
[1739374770124,5.1668,193.55,193.53,0.03279789]
[1739374770625,0.03904726,193.56,193.53,0.03279789]
[1739374774731,5.20564726,193.56,193.53,0.03279789]
[1739374775025,0.03904726,193.56,193.44,1.8136]
[1739374775227,5.1681,193.51,193.44,6.9832]
[1739374775427,5.1681,193.51,193.44,1.8136]
[1739374775929,5.1684,193.5,193.43,1.8942]
[1739374776228,0.03533136,193.49,193.46,0.0334332]
[1739374776424,184.9351,193.62,193.48,37.50591833]
[1739374776730,37.50591833,193.59,193.43,1.8942]
[1739374776928,5.1672,193.54,193.46,5.169]
[1739374777130,37.50591833,193.59,193.43,3.7949]
[1739374777326,37.50591833,193.56,193.43,3.7949]
[1739374777523,5.1677,193.52,193.43,8.9649]
[1739374777725,0.03741671,193.51,193.48,0.03282715]
[1739374778118,37.50591833,193.59,193.43,3.7949]
[1739374778322,37.50591833,193.59,193.44,5.1698]
[1739374778528,0.0379596,193.51,193.48,0.03536182]
[1739374778825,222.44101833,193.62,193.48,37.54128015]
[1739374779018,1.9173,193.63,193.48,42.70998015]
[1739374779218,0.0379596,193.51,193.48,42.67461833]
[1739374779418,1.9173,193.63,193.54,0.03708443]
[1739374779825,1.9173,193.63,193.48,42.67461833]
[1739374780026,0.03709475,193.6,193.57,0.03260201]
[1739374780423,37.50591833,193.59,193.2,37.50591833]
[1739374780631,37.50591833,193.56,193.39,37.50591833]
[1739374781029,5.1681,193.51,193.39,37.50591833]
[1739374781226,37.50591833,193.56,193.39,37.50591833]
[1739374781420,222.44101833,193.59,193.43,5.17]
[1739374781627,0.03488353,193.5,193.47,0.03602762]
[1739374781925,39.40281833,193.62,193.48,5.1686]
[1739374782126,39.40281833,193.62,193.46,1.8236]
[1739374782328,0.03315143,193.5,193.47,0.03485379]
[1739374782523,39.40281833,193.62,193.46,1.8236]
[1739374782725,0.03366441,193.5,193.47,0.03822164]
[1739374782930,37.50591833,193.59,193.46,1.8236]
[1739374783131,0.03850502,193.5,193.47,0.03877291]
[1739374783429,37.50591833,193.59,193.42,42.67611833]
[1739374783629,37.50591833,193.56,193.42,5.1702]
[1739374783821,0.03936266,193.5,193.47,0.03400555]
[1739374784831,5.1687,193.48,193.47,0.03400555]
[1739374786331,5.20776266,193.5,193.47,0.03400555]
[1739374786832,5.1687,193.49,193.47,0.03400555]
[1739374787232,0.03936266,193.5,193.47,0.03400555]
[1739374788032,5.1687,193.48,193.47,0.03400555]
[1739374788633,5.20766266,193.5,193.47,0.03400555]
[1739374790327,9.40635347,193.68,193.47,23.11508092]
[1739374790533,1.9475,193.67,193.52,23.08107537]
[1739374790927,5.1642,193.65,193.56,5.1665]
[1739374791132,1.9475,193.67,193.56,5.1665]
[1739374791531,0.03119896,193.63,193.6,0.03634531]
[1739374794236,0.03119896,193.63,193.62,5.165]
[1739374796433,1.9026,193.73,193.61,37.46852361]
[1739374796740,1.9026,193.73,193.66,5.1637]
[1739374797532,1.9026,193.73,193.59,1.8194]
[1739374797730,1.9026,193.73,193.68,0.03573328]
[1739374797931,1.9026,193.73,193.59,1.8194]
[1739374798138,1.9026,193.73,193.69,0.03963558]
[1739374798337,1.9026,193.73,193.62,5.1648]
[1739374798540,5.1628,193.7,193.69,0.03793734]
[1739374800838,5.1647,193.63,193.55,37.46852361]
[1739374801045,5.1647,193.63,193.54,1.9702]
[1739374801338,37.46852361,193.69,193.54,1.9702]
[1739374801543,5.1654,193.61,193.54,1.9702]
[1739374802044,0.03757862,193.59,193.56,0.03256483]
[1739374802345,5.1655,193.6,193.54,1.9702]
[1739374802644,5.1661,193.58,193.56,0.03950643]
[1739374802839,5.1661,193.58,193.53,1.8458]
[1739374803043,37.46852361,193.66,193.55,0.03416288]
[1739374803242,0.03793734,193.57,193.55,0.03416288]
[1739374803441,5.1657,193.6,193.53,1.8458]
[1739374803643,5.1657,193.6,193.54,0.03615999]
[1739374803943,5.19972024,193.58,193.54,0.03615999]
[1739374804140,0.03362024,193.58,193.55,37.46852361]
[1739374804439,37.46852361,193.81,193.55,42.33734833]
[1739374804742,3.8408,193.78,193.65,37.46852361]
[1739374804941,9.0017,193.78,193.69,5.1631]
[1739374805242,1.8281,193.8,193.71,37.46852361]
[1739374805442,84.75151695,193.83,193.71,37.46852361]
[1739374805644,84.75151695,193.83,193.74,0.03648863]
[1739374805940,37.46852361,193.75,193.61,1.8475]
[1739374806142,5.1629,193.7,193.59,37.46852361]
[1739374806938,5.1629,193.7,193.62,5.1649]
[1739374807135,0.03521585,193.66,193.63,0.03908939]
[1739374809744,5.1642,193.65,193.63,0.03908939]
[1739374810147,0.03521585,193.66,193.63,0.03908939]
[1739374810354,5.1652,193.61,193.56,1.03327133]
[1739374810551,1.9776,193.65,193.56,1.03327133]
[1739374810750,37.46852361,193.63,193.56,1.03327133]
[1739374810948,37.46852361,193.63,193.48,3.9654]
[1739374811145,1.8154,193.62,193.48,3.9654]
[1739374811349,1.8154,193.62,193.46,37.46852361]
[1739374811546,0.03972119,193.58,193.54,0.03398132]
[1739374811847,0.03972119,193.58,193.43,101.92365886]
[1739374812445,0.03972119,193.58,193.46,37.46852361]
[1739374812943,0.03972119,193.58,193.52,0.03601796]
[1739374813442,5.1666,193.56,193.52,0.03601796]
[1739374813848,0.03972119,193.58,193.52,0.03601796]
[1739374815146,5.1672,193.54,193.52,0.03601796]
[1739374815747,5.1674,193.53,193.52,0.03601796]
[1739374816158,23.11726463,193.58,193.41,28.68654344]
[1739374816460,5.1679,193.51,193.42,5.1701]
[1739374816654,5.1679,193.51,193.41,28.68654344]
[1739374816855,5.1679,193.51,193.44,5.1695]
[1739374817154,5.1679,193.51,193.41,28.68654344]
[1739374817354,5.1679,193.51,193.49,0.03812583]
[1739374817747,0.03455752,193.52,193.49,0.03812583]
[1739374819152,5.20225752,193.52,193.49,0.03812583]
[1739374820851,0.03455752,193.52,193.49,0.03812583]
[1739374821256,0.03455752,193.52,193.49,23.11566927]
[1739374821857,0.03455752,193.52,193.5,1.7782]
[1739374822255,0.03455752,193.52,193.49,23.11566927]
[1739374822461,0.03455752,193.52,193.49,0.03812583]
[1739374822855,0.03455752,193.52,193.49,23.11566927]
[1739374823457,0.03455752,193.52,193.51,5.1679]
[1739374824058,5.1659,193.59,193.5,1.6565]
[1739374824262,5.1659,193.59,193.52,5.1676]
[1739374825062,1.8154,193.62,193.5,1.6565]
[1739374825265,0.03291274,193.57,193.54,0.03932219]
[1739374825471,0.03291274,193.57,193.46,23.07754344]
[1739374825771,5.1668,193.56,193.54,0.03748167]
[1739374825962,0.03291274,193.57,193.49,5.1682]
[1739374826162,0.03291274,193.57,193.53,0.03594967]
[1739374826872,5.1666,193.56,193.53,0.03594967]
[1739374828366,5.19921274,193.57,193.53,0.03594967]
[1739374828573,0.03291274,193.57,193.53,0.03594967]
[1739374829673,0.03291274,193.57,193.55,23.07754344]
[1739374830272,5.1642,193.65,193.55,23.07754344]
[1739374830472,3.3254,193.68,193.58,23.07754344]
[1739374830669,1.7425,193.72,193.61,23.07754344]
[1739374830872,5.1625,193.72,193.64,5.1644]
[1739374831373,0.03412089,193.7,193.66,0.03537466]
[1739374831775,1.6926,193.81,193.67,23.07754344]
[1739374831984,5.1608,193.78,193.7,5.1628]
[1739374832271,1.6926,193.81,193.67,23.07754344]
[1739374832475,5.1604,193.8,193.72,5.1623]
[1739374832977,5.1604,193.8,193.74,0.03553555]
[1739374832978,0.03559694,193.78,193.74,0.03553555]
[1739374837678,5.1615,193.75,193.74,0.03553555]
[1739374838575,0.03559694,193.78,193.64,23.07754344]
[1739374838879,23.07754344,193.76,193.62,1.6462]
[1739374839075,3.4581,193.75,193.62,1.6462]
[1739374839578,5.164,193.66,193.62,1.6462]
[1739374839973,0.03393172,193.7,193.59,0.22411]
[1739374840173,23.07754344,193.73,193.62,0.03882461]
[1739374840381,23.07754344,193.7,193.62,0.03882461]
[1739374840572,0.03334868,193.66,193.62,0.03882461]
[1739374840776,5.1655,193.6,193.59,0.22411]
[1739374842683,0.03518269,193.61,193.59,0.22411]
[1739374844182,1.9316,193.72,193.59,0.22411]
[1739374844482,5.1633,193.69,193.59,5.38961]
[1739374845379,0.03656049,193.66,193.62,0.03764923]
[1739374846277,204.85545242,193.86,193.62,0.03764923]
[1739374846476,5.1617,193.75,193.65,5.1639]
[1739374847079,23.07754344,193.77,193.64,5.1644]
[1739374847283,1.8684,193.76,193.6,23.07754344]
[1739374847480,1.8684,193.76,193.67,0.03348311]
[1739374847676,23.07754344,193.74,193.67,0.03348311]
[1739374848091,5.1637,193.67,193.58,5.1659]
[1739374848283,23.07754344,193.71,193.55,3.5417]
[1739374848584,23.07754344,193.68,193.55,1.6448]
[1739374848792,23.07754344,193.65,193.49,23.07754344]
[1739374849083,1.8684,193.67,193.49,23.07754344]
[1739374849292,0.03935711,193.59,193.55,0.03450248]
[1739374849691,23.07754344,193.62,193.46,26.78704344]
[1739374849989,0.03438791,193.59,193.55,0.03520379]
[1739374850488,5.20018791,193.59,193.55,0.03520379]
[1739374851890,0.03438791,193.59,193.55,0.03520379]
[1739374854190,0.03438791,193.59,193.55,5.20180379]
[1739374854392,0.03438791,193.59,193.55,0.03520379]
[1739374856594,5.1666,193.56,193.55,0.03520379]
[1739374856893,23.11193135,193.59,193.51,0.20517]
[1739374857088,5.1669,193.55,193.51,0.20517]
[1739374857992,0.03843242,193.55,193.51,0.24178645]
[1739374858692,0.03843242,193.55,193.51,5.40958645]
[1739374860788,0.03843242,193.55,193.54,5.1671]
[1739374860993,0.03843242,193.55,193.51,0.24178645]
[1739374863098,0.03843242,193.55,193.54,5.1671]
[1739374863592,5.20543242,193.55,193.51,0.03661645]
[1739374864593,0.03843242,193.55,193.51,0.03661645]
[1739374864796,0.03843242,193.55,193.37,56.46798007]
[1739374865000,23.07754344,193.53,193.37,81.33052351]
[1739374865497,3.8525,193.55,193.44,5.1697]
[1739374865704,3.8525,193.55,193.43,23.07754344]
[1739374866000,5.1683,193.5,193.47,0.03795049]
[1739374866897,0.03588206,193.51,193.47,0.03795049]
[1739374867296,0.03588206,193.51,193.37,1.785]
[1739374867500,23.07754344,193.47,193.31,23.07754344]
[1739374868501,0.03718379,193.41,193.37,0.03731831]
[1739374869402,0.03718379,193.41,193.37,5.20881831]
[1739374870204,0.03718379,193.41,193.38,5.1714]
[1739374871303,0.03718379,193.41,193.4,5.1708]
[1739374873304,0.03718379,193.41,193.37,0.03731831]
[1739374874604,1.92368379,193.41,193.37,0.03731831]
[1739374875105,5.1714,193.38,193.37,0.03731831]
[1739374875708,5.1714,193.38,193.28,7.05869363]
[1739374876005,5.1714,193.38,193.29,5.1738]
[1739374876202,5.1714,193.38,193.28,7.05869363]
[1739374876203,23.07754344,193.38,193.28,7.05869363]
[1739374876396,7.1323,193.37,193.28,7.05869363]
[1739374876802,23.07754344,193.35,193.28,7.05869363]
[1739374877010,1.91419401,193.34,193.31,0.03849172]
[1739374877196,1.91419401,193.34,193.28,7.05869363]
[1739374877506,5.1732,193.32,193.28,7.05869363]
[1739374877706,23.07754344,193.32,193.24,84.49140501]
[1739374877900,23.07754344,193.29,193.27,9.08571042]
[1739374878103,5.1743,193.27,193.26,39.12569049]
[1739374878303,23.07754344,193.32,193.26,39.12569049]
[1739374878600,0.03347242,193.28,193.26,39.12569049]
[1739374878804,0.03347242,193.28,193.25,0.03552199]
[1739374879805,0.03347242,193.28,193.25,5.21022199]
[1739374880613,0.03347242,193.28,193.25,0.03552199]
[1739374881706,23.07754344,193.26,193.18,7.04079382]
[1739374882111,23.07754344,193.26,193.16,3.6739]
[1739374883009,0.03825236,193.23,193.19,0.03857998]
[1739374884007,0.03825236,193.23,193.19,5.21497998]
[1739374885109,5.21375236,193.23,193.19,0.03857998]
[1739374885309,0.03825236,193.23,193.19,0.03857998]
[1739374885710,0.03825236,193.23,193.19,5.21497998]
[1739374886109,0.03825236,193.23,193.19,0.03857998]
[1739374886411,5.1759,193.22,193.19,0.03857998]
[1739374886809,5.21365236,193.23,193.19,0.03857998]
[1739374887408,5.176,193.21,193.19,0.03857998]
[1739374887613,0.03825236,193.23,193.19,0.03857998]
[1739374888012,5.1761,193.21,193.19,0.03857998]
[1739374889515,5.1762,193.2,193.19,0.03857998]
[1739374889913,0.03825236,193.23,193.19,0.03857998]
[1739374891015,5.21365236,193.23,193.19,0.03857998]
[1739374892414,5.1748,193.26,193.19,0.03857998]
[1739374892716,184.9351,193.39,193.19,23.11612342]
[1739374892917,184.9351,193.48,193.22,23.07754344]
[1739374893117,5.1731,193.32,193.25,5.1746]
[1739374893314,10.3383,193.47,193.26,3.875]
[1739374893623,0.03623167,193.34,193.3,0.03488542]
[1739374903723,5.1732,193.31,193.3,0.03488542]
[1739374906524,5.1746,193.26,193.23,5.1753]
[1739374907027,5.1749,193.25,193.22,5.1756]
[1739374907527,5.1749,193.25,193.2,1.9975]
[1739374907737,5.2142985,193.25,193.22,0.03393408]
[1739374908228,0.0393985,193.25,193.22,0.03393408]
[1739374908629,5.1754,193.23,193.22,0.03393408]
[1739374912828,28.25294344,193.23,193.22,0.03393408]
[1739374913028,5.1764,193.2,193.16,3.9271]
[1739374914230,5.21412408,193.2,193.16,3.96047442]
[1739374915233,0.03772408,193.2,193.16,3.96047442]
[1739374915434,5.1765,193.19,193.16,3.96047442]
[1739374917428,208.01264344,193.31,193.16,3.96047442]
[1739374917632,23.07754344,193.31,193.16,3.9271]
[1739374918536,0.03331035,193.25,193.22,0.03620936]
[1739374919234,5.1732,193.32,193.24,5.1751]
[1739374919635,14.46387795,193.31,193.24,5.1751]
[1739374920027,19.63727795,193.31,193.24,5.1751]
[1739374920229,14.46387795,193.28,193.26,0.03434727]
[1739374920427,184.9351,193.37,193.2,14.46387795]
[1739374920428,14.46387795,193.31,193.2,14.46387795]
[1739374920626,0.03877607,193.29,193.25,0.0351426]
[1739374920831,14.46387795,193.34,193.2,14.46387795]
[1739374921030,0.03872176,193.29,193.25,0.03466673]
[1739374921337,5.1722,193.35,193.25,0.03466673]
[1739374922132,5.1722,193.35,193.28,5.1738]
[1739374922535,0.0344264,193.33,193.3,0.03409857]
[1739374924635,5.1732,193.31,193.3,0.03409857]
[1739374925942,23.161612,193.33,193.17,2.0021]
[1739374926141,23.1271856,193.28,193.17,2.0021]
[1739374927142,0.03866317,193.24,193.21,0.03827162]
[1739374929753,184.9351,193.32,193.21,0.03827162]
[1739374929950,23.1271856,193.34,193.22,5.1754]
[1739374930344,23.1271856,193.34,193.19,23.1271856]
[1739374930549,23.1271856,193.37,193.22,23.1271856]
[1739374930750,23.1271856,193.37,193.23,1.9159]
[1739374930946,5.20764634,193.31,193.28,0.03285629]
[1739374931246,0.03424634,193.31,193.28,0.03285629]
[1739374932047,5.1738,193.29,193.28,0.03285629]
[1739374932253,23.16143194,193.31,193.17,2.0021]
[1739374932454,23.1271856,193.26,193.13,1.8479]
[1739374932849,5.1762,193.21,193.14,5.1776]
[1739374933455,5.20894163,193.2,193.16,0.03498802]
[1739374935056,0.03274163,193.2,193.16,0.03498802]
[1739374937254,0.03274163,193.2,193.17,5.1769]
[1739374937451,1.9221,193.29,193.16,0.03498802]
[1739374937653,23.1271856,193.32,193.15,24.9477856]
[1739374938053,5.1743,193.27,193.2,5.176]
[1739374938456,0.0341773,193.25,193.22,0.03789757]
[1739374940153,0.0341773,193.25,193.13,1.8479]
[1739374940351,23.1271856,193.26,193.13,1.8479]
[1739374940859,23.1271856,193.23,193.1,1.842]
[1739374941256,0.03371401,193.19,193.15,0.03848737]
[1739374941857,5.1768,193.18,193.15,0.03848737]
[1739374943657,5.1773,193.16,193.15,0.03848737]
[1739374943861,23.1271856,193.17,193.01,5.6345]
[1739374944061,23.1271856,193.14,193.01,5.6345]
[1739374944461,23.1271856,193.11,193.01,5.6345]
[1739374944666,23.1271856,193.11,193.01,3.7767]
[1739374945165,0.03821339,193.08,193.04,0.03448737]
[1739374946061,23.16539899,193.08,192.98,7.13313512]
[1739374946260,23.16539899,193.08,192.98,12.31523512]
[1739374946463,23.16539899,193.08,192.98,7.13313512]
[1739374947262,5.1814,193.01,192.95,5.1829]
[1739374947566,5.1814,193.01,192.96,0.03978301]
[1739374947767,0.03435773,193.0,192.96,0.03978301]
[1739374950170,0.03435773,193.0,192.96,5.22238301]
[1739374950864,0.03435773,193.0,192.96,0.03978301]
[1739374951059,23.1271856,193.08,192.96,0.03978301]
[1739374951265,1.9051,193.1,192.94,23.1271856]
[1739374951461,5.1799,193.07,193.0,5.1815]
[1739374952272,0.03400684,193.05,193.02,0.03498915]
[1739374952769,23.1271856,193.17,193.03,23.1271856]
[1739374952965,23.1271856,193.17,193.04,3.9325]
[1739374953163,5.1783,193.13,193.06,5.1798]
[1739374953361,23.1271856,193.17,193.04,3.9325]
[1739374953564,23.1271856,193.14,193.04,1.9548]
[1739374953763,23.1271856,193.14,191.36,50.24439152]
[1739374953764,5.1789,193.1,193.09,0.03542801]
[1739374954164,23.1271856,193.11,192.95,1.8107]
[1739374954369,5.1791,193.09,193.08,0.03355358]
[1739374954568,5.1791,193.09,193.02,5.1808]
[1739374954768,5.1791,193.09,193.07,0.03289002]
[1739374955065,5.1791,193.09,193.03,5.1805]
[1739374955266,23.1271856,193.14,193.06,0.03503756]
[1739374955267,0.03319595,193.1,193.06,0.03503756]
[1739374955770,0.0329497,193.1,193.06,0.0353607]
[1739374956763,0.0329497,193.1,193.06,5.2152607]
[1739374958173,0.0329497,193.1,193.06,0.0353607]
[1739374958468,25.0712856,193.23,193.07,1.895]
[1739374958671,1.9396,193.24,193.09,23.1271856]
[1739374958871,23.1271856,193.2,193.08,1.9459]
[1739374959467,0.03679596,193.16,193.12,0.03812604]
[1739374959671,23.1271856,193.17,193.08,1.9459]
[1739374959969,5.21625085,193.16,193.12,0.03882327]
[1739374960175,0.03895085,193.16,193.12,0.03882327]
[1739374960673,0.03895085,193.16,193.14,5.1777]
[1739374961273,0.03895085,193.16,193.12,0.03882327]
[1739374962169,0.03895085,193.16,193.12,5.21712327]
[1739374962371,0.03895085,193.16,193.12,0.03882327]
[1739374962972,5.21625085,193.16,193.12,0.03882327]
[1739374963373,5.1779,193.14,193.12,0.03882327]
[1739374964774,14.52446027,193.16,193.12,0.03882327]
[1739374964975,5.1781,193.13,193.12,0.03882327]
[1739374965182,14.48550942,193.13,193.01,14.48550942]
[1739374965376,14.48550942,193.1,192.98,14.48550942]
[1739374966279,14.48550942,193.1,192.97,3.8201]
[1739374966474,14.48550942,193.1,193.02,0.03653323]
[1739374966475,0.03520439,193.06,193.02,0.03653323]
[1739374967782,0.03520439,193.06,193.02,5.21733323]
[1739374970183,0.03520439,193.06,193.02,0.03653323]
[1739374970378,0.03520439,193.06,193.05,5.1802]
[1739374970981,23.19309495,193.17,193.02,23.22962818]
[1739374971179,23.19309495,193.2,193.02,23.19309495]
[1739374971375,0.95180084,193.19,193.02,23.19309495]
[1739374971782,5.178,193.14,193.07,5.1796]
[1739374972179,0.03264629,193.12,193.09,0.03529125]
[1739374972379,0.03264629,193.12,193.09,5.21439125]
[1739374973183,0.03264629,193.12,193.1,5.1787]
[1739374973682,23.19309495,193.24,193.09,0.03529125]
[1739374973984,188.6456,193.25,193.08,23.19309495]
[1739374974983,0.03872387,193.18,193.15,0.03312546]
[1739374975184,25.02709495,193.3,193.15,0.03312546]
[1739374975486,23.19309495,193.27,193.11,23.19309495]
[1739374976075,23.19309495,193.27,193.08,23.19309495]
[1739374976584,0.0364138,193.21,193.17,0.03824281]
[1739374977084,5.1739,193.29,193.22,5.1756]
[1739374977988,5.1735,193.31,193.23,5.1753]
[1739374978281,0.03591334,193.25,193.22,0.03803129]
[1739374978487,26.87869495,193.36,193.22,0.03803129]
[1739374978687,0.03299897,193.25,193.22,0.03803129]
[1739374978882,5.1729,193.33,193.18,23.19309495]
[1739374979084,0.0362414,193.25,193.22,0.03280272]
[1739374979282,5.1729,193.33,193.22,0.03280272]
[1739374979484,0.03389182,193.25,193.22,0.03280272]
[1739374979683,5.1729,193.33,193.25,5.1747]
[1739374980081,5.1733,193.31,193.18,23.19309495]
[1739374980386,5.1733,193.31,193.23,5.1751]
[1739374980588,0.03727595,193.26,193.23,5.21077786]
[1739374981784,0.03727595,193.26,193.23,0.03567786]
[1739374982682,5.1751,193.24,193.23,0.03567786]
[1739374982888,0.03727595,193.26,193.1,1.8493]
[1739374983183,23.19309495,193.24,193.1,5.6369]
[1739374983982,5.1768,193.18,193.15,0.0356584]
[1739374985678,0.03973223,193.19,193.15,0.0356584]
[1739374987884,23.19309495,193.18,192.99,23.19309495]
[1739374988085,23.19309495,193.09,192.99,1.8466]
[1739374988387,5.1806,193.04,192.99,1.8466]
[1739374988584,23.19309495,193.09,192.98,28.37528158]
[1739374988780,23.19309495,193.06,192.98,28.37528158]
[1739374988986,0.03478158,193.05,193.02,0.03642138]
[1739374989788,0.03478158,193.05,192.98,28.37528158]
[1739374989987,23.19309495,193.03,192.98,28.37528158]
[1739374990290,5.1818,192.99,192.93,1.8466]
[1739374990992,0.03804507,192.98,192.94,0.0330893]
[1739374995387,5.1826,192.97,192.94,0.0330893]
[1739374995592,0.03804507,192.98,192.94,0.0330893]
[1739374995792,23.19309495,192.97,192.78,23.19309495]
[1739374995986,23.19309495,192.91,192.79,1.876]
[1739374996703,5.1851,192.87,192.8,5.1867]
[1739374996998,0.03698361,192.85,192.82,0.03490878]
[1739374998898,5.22268361,192.85,192.82,0.03490878]
[1739374999499,0.03698361,192.85,192.82,0.03490878]
[1739375001501,0.03698361,192.85,192.83,5.1859]
[1739375001802,0.03698361,192.85,192.82,0.03490878]
[1739375009403,0.03698361,192.85,192.82,5.22130878]
[1739375010103,0.03698361,192.85,192.82,0.03490878]
[1739375010904,23.23007856,192.85,192.69,23.19309495]
[1739375011104,23.23007856,192.85,192.7,1.8489]
[1739375011301,23.19309495,192.85,192.7,1.8489]
[1739375011898,23.19309495,192.82,192.7,1.8489]
[1739375012102,23.2279175,192.79,192.76,0.03345577]
[1739375012499,23.19309495,192.79,192.64,1.9812]
[1739375012702,0.03643923,192.79,192.76,0.0373959]
[1739375012905,23.19309495,192.85,192.69,23.19309495]
[1739375013208,0.03457886,192.79,192.76,0.03378749]
[1739375016504,0.03457886,192.79,192.76,5.22178749]
[1739375017605,0.03457886,192.79,192.76,0.03378749]
[1739375018405,5.22187886,192.79,192.76,0.03378749]
[1739375019907,0.03457886,192.79,192.76,0.03378749]
[1739375021119,0.03457886,192.79,192.78,5.1875]
[1739375021608,0.03457886,192.79,192.76,0.03378749]
[1739375021805,0.03457886,192.79,192.76,5.22158749]
[1739375022715,0.03457886,192.79,192.76,0.03378749]
[1739375023914,5.1877,192.78,192.76,0.03378749]
[1739375024115,0.03457886,192.79,192.76,0.03378749]
[1739375025110,5.1877,192.77,192.76,0.03378749]
[1739375026920,5.1888,192.74,192.7,5.1896]